bitfinex/quotes_BTCUSD_20250508
["timestamp","ask_amount","ask_price","bid_price","bid_amount"]
[1746737201099,0.002,102190.0,102180.0,5.50122379]
[1746737201223,0.002,102190.0,102180.0,5.49822379]
[1746737201422,0.01178502,102190.0,102180.0,4.75729294]
[1746737201628,0.002,102190.0,102180.0,2.15726094]
[1746737201829,0.002,102190.0,102180.0,7.11546788]
[1746737202055,0.002,102190.0,102180.0,7.11173293]
[1746737202531,0.002,102190.0,102180.0,7.11573293]
[1746737204006,0.002,102190.0,102180.0,5.72237563]
[1746737205133,0.002,102190.0,102180.0,5.69470769]
[1746737205586,0.002,102190.0,102180.0,5.60894713]
[1746737205716,0.002,102190.0,102180.0,5.14410212]
[1746737206718,0.002,102190.0,102180.0,5.15303646]
[1746737207978,0.002,102190.0,102180.0,5.45303646]
[1746737208386,0.002,102210.0,102200.0,0.22504776]
[1746737208559,0.02170928,102210.0,102200.0,3.53985461]
[1746737208761,0.00214289,102210.0,102200.0,3.88878895]
[1746737209009,0.00214289,102210.0,102200.0,4.58078281]
[1746737209147,0.00214289,102210.0,102200.0,4.2419422]
[1746737209590,0.00214289,102210.0,102200.0,3.86807877]
[1746737209830,0.00214289,102210.0,102200.0,4.21363178]
[1746737210790,0.11741146,102220.0,102210.0,0.56502602]
[1746737210962,0.11741146,102220.0,102210.0,2.82209155]
[1746737211169,0.12719428,102220.0,102210.0,2.43656544]
[1746737211475,0.12719428,102220.0,102210.0,2.34992719]
[1746737211683,0.11741146,102220.0,102210.0,2.75971029]
[1746737211890,0.03912974,102220.0,102210.0,2.75971029]
[1746737212077,0.04112974,102220.0,102210.0,2.74992719]
[1746737212289,0.32760339,102220.0,102210.0,0.77362924]
[1746737212473,0.32760339,102220.0,102210.0,0.43362924]
[1746737213093,0.25132167,102220.0,102210.0,0.42691684]
[1746737213262,0.43027031,102220.0,102210.0,0.40893434]
[1746737213468,0.43027031,102220.0,102210.0,0.4267976]
[1746737213614,0.43027031,102220.0,102210.0,0.42680155]
[1746737214440,0.25132167,102220.0,102210.0,1.30870956]
[1746737214546,0.23532167,102220.0,102210.0,1.27922956]
[1746737214760,0.21922167,102220.0,102210.0,0.93367655]
[1746737215154,0.21922167,102220.0,102210.0,1.24699456]
[1746737215511,0.21922167,102220.0,102210.0,0.90144155]
[1746737215707,0.21922167,102220.0,102210.0,1.24815395]
[1746737215922,0.21922167,102220.0,102210.0,1.81370714]
[1746737216123,0.004,102220.0,102210.0,1.83327401]
[1746737216318,0.01378224,102220.0,102210.0,2.28927704]
[1746737216515,0.02356458,102220.0,102210.0,1.94372403]
[1746737216689,0.0333472,102220.0,102210.0,1.94372403]
[1746737217323,0.0333472,102220.0,102210.0,1.59817102]
[1746737217554,0.0333472,102220.0,102210.0,1.94372403]
[1746737217739,0.04312916,102220.0,102210.0,1.94372403]
[1746737218181,0.24420458,102220.0,102210.0,0.77347395]
[1746737218416,0.23442196,102220.0,102210.0,1.29595195]
[1746737218942,0.20527784,102220.0,102210.0,1.29595195]
[1746737219150,0.22177784,102220.0,102210.0,0.77347395]
[1746737219390,0.22177784,102220.0,102210.0,0.78492588]
[1746737220625,0.32244476,102220.0,102210.0,0.77347395]
[1746737223225,0.22177784,102220.0,102210.0,1.83515196]
[1746737223682,0.22177784,102220.0,102210.0,1.48959895]
[1746737223891,0.22177784,102220.0,102210.0,1.29923095]
[1746737224042,0.21688621,102220.0,102210.0,1.15793495]
[1746737224260,0.21688621,102220.0,102210.0,1.08536195]
[1746737224432,0.20514622,102220.0,102210.0,1.07520195]
[1746737225060,0.20514622,102220.0,102210.0,0.77347395]
[1746737226555,0.20514622,102220.0,102210.0,0.36457961]
[1746737227132,0.20514622,102220.0,102210.0,0.36474716]
[1746737227673,0.20514622,102220.0,102210.0,0.76474716]
[1746737228169,0.04148282,102220.0,102210.0,1.30597573]
[1746737228370,0.21303947,102230.0,102220.0,0.19565642]
[1746737228526,0.21720052,102230.0,102220.0,2.0076891]
[1746737228730,0.21720052,102230.0,102220.0,2.02572386]
[1746737228930,0.22698181,102230.0,102220.0,2.0452892]
[1746737229471,0.21564998,102230.0,102220.0,1.70644859]
[1746737229685,0.21864998,102230.0,102220.0,2.0520016]
[1746737230018,0.21864998,102230.0,102220.0,2.04221898]
[1746737230229,0.20886841,102230.0,102220.0,1.99825298]
[1746737230467,0.20886841,102230.0,102220.0,1.94936498]
[1746737230671,0.21186841,102230.0,102220.0,1.94936498]
[1746737230821,0.21186841,102230.0,102220.0,1.9591476]
[1746737231334,0.00644946,102230.0,102220.0,1.9591476]
[1746737231577,0.00644946,102230.0,102220.0,2.01011218]
[1746737231735,0.01623055,102230.0,102220.0,2.5107791]
[1746737231939,0.02601184,102230.0,102220.0,2.5107791]
[1746737232161,0.03579341,102230.0,102220.0,2.4793791]
[1746737232359,0.02301184,102230.0,102220.0,2.4793791]
[1746737232603,0.02301184,102230.0,102220.0,2.47936074]
[1746737232810,0.02401184,102230.0,102220.0,2.47936074]
[1746737233027,0.02401184,102230.0,102220.0,2.48657724]
[1746737233210,0.0337936,102230.0,102220.0,2.48657724]
[1746737233442,0.02101184,102230.0,102220.0,2.48657724]
[1746737233995,0.21764989,102230.0,102220.0,1.4393873]
[1746737234044,0.24954989,102230.0,102220.0,0.9623903]
[1746737234190,0.24954989,102230.0,102220.0,0.9686003]
[1746737235141,0.35021681,102230.0,102220.0,0.4247288]
[1746737235353,0.35001669,102230.0,102220.0,0.4247288]
[1746737235584,0.6955697,102230.0,102220.0,0.4247288]
[1746737236164,0.35001669,102230.0,102220.0,0.4247288]
[1746737239533,0.35001669,102230.0,102220.0,0.43373788]
[1746737240118,0.35001669,102230.0,102220.0,0.03373788]
[1746737240554,0.35001669,102230.0,102220.0,0.49220007]
[1746737241337,0.34958397,102230.0,102220.0,0.49220007]
[1746737242195,0.69513698,102230.0,102220.0,0.49220007]
[1746737243005,0.69513698,102230.0,102220.0,0.09220007]
[1746737243201,0.69513698,102230.0,102220.0,0.43220007]
[1746737243422,0.69513698,102230.0,102220.0,0.83220007]
[1746737243779,0.69513698,102230.0,102220.0,0.49220007]
[1746737245178,0.79569698,102230.0,102220.0,0.49220007]
[1746737245590,0.9063639,102230.0,102220.0,0.09220007]
[1746737245969,0.80569698,102230.0,102220.0,0.09220007]
[1746737246297,0.80569698,102230.0,102220.0,0.08548767]
[1746737246684,0.80569698,102230.0,102220.0,0.02702548]
[1746737246685,0.82023783,102230.0,102220.0,0.02702548]
[1746737247294,0.81942121,102230.0,102220.0,0.02702548]
[1746737247498,0.92008813,102230.0,102220.0,0.02702548]
[1746737247693,0.92408813,102230.0,102220.0,0.00900908]
[1746737247894,0.93108813,102230.0,102220.0,0.00900908]
[1746737248070,0.82542121,102230.0,102220.0,0.00900908]
[1746737248507,0.86542121,102230.0,102220.0,0.00900908]
[1746737248703,0.21543904,102220.0,102210.0,0.06769867]
[1746737249064,1.04325283,102220.0,102210.0,0.06769867]
[1746737249204,1.87739359,102220.0,102210.0,0.06769867]
[1746737249697,1.53184058,102220.0,102210.0,0.00923648]
[1746737249899,1.87739359,102220.0,102210.0,0.0002274]
[1746737250120,1.83639359,102220.0,102210.0,0.0002274]
[1746737253043,1.79605283,102220.0,102210.0,0.0002274]
[1746737253732,1.74605283,102220.0,102210.0,0.0002274]
[1746737254174,1.79605283,102220.0,102210.0,0.0002274]
[1746737255551,1.84605283,102220.0,102210.0,0.0002274]
[1746737255769,1.10325283,102220.0,102210.0,0.0002274]
[1746737255981,0.41214681,102220.0,102210.0,0.0002274]
[1746737256184,1.10225283,102220.0,102210.0,0.0002274]
[1746737257313,1.15676233,102220.0,102210.0,0.0002274]
[1746737257620,1.15672233,102220.0,102210.0,0.0002274]
[1746737257913,1.15672233,102220.0,102210.0,0.3002274]
[1746737258294,1.10221283,102220.0,102210.0,0.3002274]
[1746737258876,1.10221283,102220.0,102210.0,0.5889274]
[1746737260413,0.99300601,102210.0,102200.0,0.002]
[1746737260613,1.09367293,102210.0,102200.0,0.002]
[1746737261750,0.24718457,102190.0,102180.0,0.002]
[1746737261972,1.19927751,102190.0,102180.0,0.00214289]
[1746737262171,0.86826535,102190.0,102180.0,0.00214289]
[1746737262595,0.85826535,102190.0,102180.0,0.00214289]
[1746737263006,0.51271234,102190.0,102180.0,0.00214289]
[1746737263207,0.85826535,102190.0,102180.0,0.00214289]
[1746737263337,0.7245045,102190.0,102180.0,0.00214289]
[1746737263565,0.7225045,102190.0,102180.0,0.00214289]
[1746737263774,0.8391845,102190.0,102180.0,0.00214289]
[1746737263977,0.49563149,102190.0,102180.0,0.00214289]
[1746737264274,0.8411845,102190.0,102180.0,0.00214289]
[1746737264964,0.8401845,102190.0,102180.0,0.00214289]
[1746737265160,0.8590845,102190.0,102180.0,0.00214289]
[1746737266504,0.32095149,102190.0,102180.0,0.00214289]
[1746737266783,0.67335149,102190.0,102180.0,0.00214289]
[1746737266895,0.77359149,102190.0,102180.0,0.00214289]
[1746737267522,0.67335149,102190.0,102180.0,0.04305197]
[1746737268339,0.67035149,102190.0,102180.0,0.04305197]
[1746737268579,0.66935149,102190.0,102180.0,0.06074253]
[1746737268930,0.67135149,102190.0,102180.0,0.06074253]
[1746737270279,0.67135149,102190.0,102180.0,0.80074253]
[1746737270607,0.67135149,102190.0,102180.0,0.80749672]
[1746737271967,0.57068457,102190.0,102180.0,1.34878275]
[1746737272298,0.57068457,102190.0,102180.0,1.94167672]
[1746737272501,0.57068457,102190.0,102180.0,2.28722973]
[1746737272502,0.56089936,102190.0,102180.0,2.28722973]
[1746737272701,0.55789936,102190.0,102180.0,1.52130123]
[1746737272909,0.55789936,102190.0,102180.0,1.14828822]
[1746737273115,0.55789936,102190.0,102180.0,0.80791522]
[1746737273315,0.55789936,102190.0,102180.0,0.91049622]
[1746737275152,0.65856628,102190.0,102180.0,0.80791522]
[1746737275979,0.65856628,102190.0,102180.0,0.77601522]
[1746737276363,0.65852628,102190.0,102180.0,0.77601522]
[1746737277158,0.65852628,102190.0,102180.0,1.15336823]
[1746737277591,0.55785936,102190.0,102180.0,2.58490824]
[1746737277747,0.55785936,102190.0,102180.0,2.78064126]
[1746737277958,0.55785936,102190.0,102180.0,2.58490824]
[1746737279892,0.19571137,102200.0,102180.0,2.74884126]
[1746737280254,0.19571137,102200.0,102190.0,2.04250201]
[1746737280493,0.19571137,102200.0,102190.0,2.21994087]
[1746737280497,0.19571137,102200.0,102190.0,1.81454001]
[1746737280693,0.19815763,102200.0,102190.0,1.14189776]
[1746737280930,0.19815763,102200.0,102190.0,1.27129684]
[1746737281118,0.29882455,102200.0,102190.0,1.30157684]
[1746737281314,0.29637829,102200.0,102190.0,1.31747684]
[1746737282150,0.29837829,102200.0,102190.0,1.11900684]
[1746737282372,0.29937829,102200.0,102190.0,0.77345383]
[1746737284973,0.29937829,102200.0,102190.0,0.61287383]
[1746737285455,0.29937829,102200.0,102190.0,0.43345383]
[1746737288215,0.24937829,102200.0,102190.0,0.43345383]
[1746737288424,0.24937829,102200.0,102190.0,0.42669964]
[1746737288657,0.44550912,102200.0,102190.0,0.42669964]
[1746737288787,0.81431302,102200.0,102190.0,0.02669964]
[1746737288988,1.95165387,102200.0,102190.0,0.02669964]
[1746737289183,1.90165387,102200.0,102190.0,0.02669964]
[1746737289385,0.30134021,102190.0,102180.0,0.00156139]
[1746737289595,0.2466267,102170.0,102160.0,0.02644475]
[1746737289796,0.44705362,102170.0,102160.0,0.00875419]
[1746737290120,0.44705362,102170.0,102160.0,0.002]
[1746737291156,0.54772054,102170.0,102160.0,0.002]
[1746737291315,0.45705362,102170.0,102160.0,0.002]
[1746737291657,0.44701362,102170.0,102160.0,0.003]
[1746737291878,0.44701362,102170.0,102160.0,0.004]
[1746737291879,0.31599362,102170.0,102160.0,0.004]
[1746737292370,0.41571362,102170.0,102160.0,0.004]
[1746737293332,0.41571362,102170.0,102160.0,0.003]
[1746737293540,0.41567362,102170.0,102160.0,0.0206]
[1746737293809,0.41567362,102170.0,102160.0,0.03733612]
[1746737293967,0.41567362,102170.0,102160.0,0.0382467]
[1746737294355,0.41567362,102170.0,102160.0,0.0540467]
[1746737294533,0.31599362,102170.0,102160.0,0.0216467]
[1746737294730,0.33119362,102170.0,102160.0,0.0216467]
[1746737296117,0.33119362,102170.0,102160.0,0.0215575]
[1746737296416,0.33119362,102170.0,102160.0,0.00382138]
[1746737297340,0.31599362,102170.0,102160.0,0.00382138]
[1746737298067,0.66839362,102170.0,102160.0,0.00382138]
[1746737299056,0.76799362,102170.0,102160.0,0.36537439]
[1746737299363,0.66839362,102170.0,102160.0,0.38057439]
[1746737299848,0.66839362,102170.0,102160.0,0.72057439]
[1746737299973,0.66839362,102170.0,102160.0,2.05981051]
[1746737299974,0.5677267,102170.0,102160.0,2.05981051]
[1746737300171,0.5677267,102170.0,102160.0,1.01241751]
[1746737300370,0.5677267,102170.0,102160.0,0.93621451]
[1746737302041,0.5677267,102170.0,102160.0,1.15156229]
[1746737302241,0.01957396,102170.0,102160.0,1.18015733]
[1746737302472,0.02936137,102170.0,102160.0,1.24563867]
[1746737302624,0.03914888,102170.0,102160.0,1.58691867]
[1746737302838,0.04893648,102170.0,102160.0,1.58691867]
[1746737303211,0.04893648,102170.0,102160.0,1.58491867]
[1746737303418,0.02057396,102170.0,102160.0,1.58791867]
[1746737303619,0.03036128,102170.0,102160.0,1.59091867]
[1746737304005,0.02057396,102170.0,102160.0,1.24536566]
[1746737304204,0.03553663,102170.0,102160.0,1.59091867]
[1746737304430,0.03553663,102170.0,102160.0,5.44747167]
[1746737305020,0.03553663,102170.0,102160.0,5.16508367]
[1746737305404,0.2312888,102170.0,102160.0,5.14853444]
[1746737305608,0.2312888,102170.0,102160.0,4.78933652]
[1746737306237,0.2312888,102170.0,102160.0,4.84779871]
[1746737307114,0.2312888,102170.0,102160.0,4.8575867]
[1746737307648,0.21632709,102170.0,102160.0,2.60075648]
[1746737307886,0.21632709,102170.0,102160.0,1.60756248]
[1746737307887,0.20653977,102170.0,102160.0,1.60756248]
[1746737309203,0.30720669,102170.0,102160.0,1.26200947]
[1746737309275,0.30720669,102170.0,102160.0,1.49032048]
[1746737310339,0.30720669,102170.0,102160.0,1.49708828]
[1746737310748,0.30720669,102170.0,102160.0,1.45472609]
[1746737311404,0.30720669,102170.0,102160.0,1.43862609]
[1746737312489,0.30720669,102170.0,102160.0,1.49734609]
[1746737312701,0.30720669,102170.0,102160.0,0.78134408]
[1746737312911,0.32240669,102170.0,102160.0,0.44134408]
[1746737313124,0.33790669,102170.0,102160.0,0.78134408]
[1746737315514,0.33790669,102170.0,102160.0,0.78130408]
[1746737316196,0.30720669,102170.0,102160.0,1.12685709]
[1746737317078,0.30720669,102170.0,102160.0,0.78130408]
[1746737317079,0.33960669,102170.0,102160.0,0.78130408]
[1746737319602,0.30720669,102170.0,102160.0,0.78130408]
[1746737320121,0.30720669,102170.0,102160.0,0.38130408]
[1746737320535,0.30720669,102170.0,102160.0,0.72685709]
[1746737320735,0.30720669,102170.0,102160.0,1.12685709]
[1746737321136,0.30720669,102170.0,102160.0,0.78130408]
[1746737322998,0.30720669,102170.0,102160.0,1.12685709]
[1746737323598,0.30720669,102170.0,102160.0,2.15349809]
[1746737323798,0.30720669,102170.0,102160.0,1.16779812]
[1746737324004,0.30720669,102170.0,102160.0,1.26202913]
[1746737325207,0.30720669,102170.0,102160.0,0.97917413]
[1746737325445,0.30720669,102170.0,102160.0,1.64866913]
[1746737326071,0.30720669,102170.0,102160.0,1.66386913]
[1746737326443,0.30720669,102170.0,102160.0,1.68006913]
[1746737328447,0.30720669,102170.0,102160.0,1.33451612]
[1746737329229,0.30720669,102170.0,102160.0,1.68006913]
[1746737331571,0.001,102170.0,102160.0,1.89541711]
[1746737331783,0.02057492,102170.0,102160.0,1.9052051]
[1746737331987,0.04014869,102170.0,102160.0,1.9052051]
[1746737332190,0.04014869,102170.0,102160.0,1.5052051]
[1746737332636,0.01078674,102170.0,102160.0,1.52953384]
[1746737332843,0.01078674,102170.0,102160.0,1.92953384]
[1746737333068,0.02057367,102170.0,102160.0,1.92953384]
[1746737333278,0.01078674,102170.0,102160.0,1.92953384]
[1746737333619,0.2163267,102170.0,102160.0,1.88562893]
[1746737333803,0.2163267,102170.0,102160.0,1.90520528]
[1746737334093,0.2163267,102170.0,102160.0,1.8954172]
[1746737334553,0.2163267,102170.0,102160.0,1.90520538]
[1746737334757,0.2163267,102170.0,102160.0,1.91499346]
[1746737334918,0.21143313,102170.0,102160.0,1.91499346]
[1746737335486,0.21143313,102170.0,102160.0,1.90520538]
[1746737335688,0.21143313,102170.0,102160.0,1.8954172]
[1746737336300,0.21143313,102170.0,102160.0,1.90219977]
[1746737336526,0.21143313,102170.0,102160.0,1.23270477]
[1746737336737,0.21143313,102170.0,102160.0,2.93105177]
[1746737336896,0.21143313,102170.0,102160.0,2.94083995]
[1746737337435,0.02546847,102170.0,102160.0,2.95062784]
[1746737337614,0.23100824,102170.0,102160.0,2.95062803]
[1746737337835,0.22511469,102170.0,102160.0,2.95062803]
[1746737339152,0.21532728,102170.0,102160.0,2.23410138]
[1746737339403,0.21532728,102170.0,102160.0,1.92053847]
[1746737339546,0.21532728,102170.0,102160.0,1.93032694]
[1746737340749,0.20553977,102170.0,102160.0,1.60863658]
[1746737340963,0.20553977,102170.0,102160.0,1.92593858]
[1746737341182,0.20553977,102170.0,102160.0,1.34568658]
[1746737341788,0.20553977,102170.0,102160.0,1.23209558]
[1746737341988,0.20553977,102170.0,102160.0,0.74678257]
[1746737342369,0.30620669,102170.0,102160.0,1.09233558]
[1746737343392,0.32240669,102170.0,102160.0,1.09233558]
[1746737343617,0.33760669,102170.0,102160.0,0.40678257]
[1746737344039,0.33760669,102170.0,102160.0,0.74678257]
[1746737345098,0.33760669,102170.0,102160.0,0.74]
[1746737347598,0.33760669,102170.0,102160.0,0.4]
[1746737348730,0.2055597,102160.0,102150.0,0.69658014]
[1746737348952,0.30622662,102160.0,102150.0,0.71381216]
[1746737349123,0.32202662,102160.0,102150.0,0.71381216]
[1746737349346,0.32202662,102160.0,102150.0,1.11381216]
[1746737349753,0.32202662,102160.0,102150.0,1.12285256]
[1746737350246,0.31601489,102160.0,102150.0,2.87297132]
[1746737350453,0.00978799,102160.0,102150.0,3.04019281]
[1746737350595,0.00978799,102160.0,102150.0,3.04419281]
[1746737350596,0.02057569,102160.0,102150.0,3.04419281]
[1746737350797,0.02547017,102160.0,102150.0,3.04419281]
[1746737351212,0.02547017,102160.0,102150.0,3.08704741]
[1746737351213,0.001,102160.0,102150.0,3.08704741]
[1746737351402,0.54813467,102180.0,102170.0,0.0155]
[1746737351659,0.64880159,102180.0,102170.0,2.54288801]
[1746737351808,0.64880159,102180.0,102170.0,1.26277701]
[1746737352079,0.64880159,102180.0,102170.0,1.28890651]
[1746737352428,0.64880159,102180.0,102170.0,1.31148239]
[1746737352629,0.29740159,102180.0,102170.0,1.53352207]
[1746737352952,0.19673467,102180.0,102170.0,1.94330939]
[1746737355427,0.19673467,102180.0,102170.0,1.92373456]
[1746737355583,0.19673467,102180.0,102170.0,1.72798239]
[1746737356882,0.19673467,102180.0,102170.0,1.69568239]
[1746737357059,0.19673467,102180.0,102170.0,1.31884839]
[1746737357422,0.19673467,102180.0,102170.0,1.37756839]
[1746737357637,0.19673467,102180.0,102170.0,1.37797538]
[1746737357931,0.19673467,102180.0,102170.0,1.3711995]
[1746737358526,0.19673467,102180.0,102170.0,1.4027995]
[1746737358977,0.19673467,102180.0,102170.0,1.3711995]
[1746737359385,0.20651947,102180.0,102170.0,1.74785251]
[1746737359606,0.20651947,102180.0,102170.0,1.4022995]
[1746737359811,0.20651947,102180.0,102170.0,1.2019095]
[1746737360062,0.20651947,102180.0,102170.0,3.81089869]
[1746737360269,0.20651947,102180.0,102170.0,0.8564517]
[1746737360601,0.20651947,102180.0,102170.0,2.01519701]
[1746737360942,0.20651947,102180.0,102170.0,1.30088401]
[1746737361322,0.20651947,102180.0,102170.0,1.70088401]
[1746737361702,0.20651947,102180.0,102170.0,1.42477801]
[1746737361902,0.20651947,102180.0,102170.0,1.03069001]
[1746737362368,0.20651947,102180.0,102170.0,1.07615201]
[1746737363274,0.20651947,102180.0,102170.0,1.09145201]
[1746737363649,0.20651947,102180.0,102170.0,1.13672801]
[1746737365343,0.21630573,102180.0,102170.0,1.69205501]
[1746737365531,0.21630573,102180.0,102170.0,1.68226769]
[1746737365759,0.20651947,102180.0,102170.0,1.47672801]
[1746737365965,0.19673302,102180.0,102170.0,1.054513]
[1746737366275,0.19673302,102180.0,102170.0,1.40006601]
[1746737366483,0.19673302,102180.0,102170.0,1.25899601]
[1746737366920,0.19673302,102180.0,102170.0,0.913443]
[1746737367100,0.21223302,102180.0,102170.0,1.25899601]
[1746737367483,0.21223302,102180.0,102170.0,0.913443]
[1746737367869,0.21223302,102180.0,102170.0,0.870111]
[1746737368070,0.21223302,102180.0,102170.0,0.769376]
[1746737368273,0.21223302,102180.0,102170.0,0.883133]
[1746737368499,0.22793302,102180.0,102170.0,0.883133]
[1746737368788,0.40688166,102180.0,102170.0,0.4]
[1746737369606,0.40688166,102180.0,102170.0,0.44547607]
[1746737371129,0.32859994,102180.0,102170.0,0.44547607]
[1746737372536,0.32859994,102180.0,102170.0,0.74547607]
[1746737373482,0.32859994,102180.0,102170.0,0.44547607]
[1746737373690,0.32859994,102180.0,102170.0,0.4]
[1746737374527,0.77167295,102180.0,102170.0,0.4]
[1746737375820,0.42611994,102180.0,102170.0,0.4]
[1746737376017,0.77167295,102180.0,102170.0,0.4]
[1746737377315,0.42611994,102180.0,102170.0,0.4]
[1746737380258,0.42611994,102180.0,102170.0,0.44553168]
[1746737382371,0.42611994,102180.0,102170.0,0.74553168]
[1746737382902,0.42611994,102180.0,102170.0,0.7]
[1746737383758,0.32859994,102180.0,102170.0,0.7]
[1746737383964,0.29739994,102180.0,102170.0,1.04]
[1746737384325,0.29739994,102180.0,102170.0,0.64]
[1746737385075,0.29739994,102180.0,102170.0,0.68553168]
[1746737385270,0.33009994,102180.0,102170.0,1.08553168]
[1746737385447,0.33009994,102180.0,102170.0,0.26883934]
[1746737385448,1.16680991,102180.0,102170.0,0.26883934]
[1746737385818,0.25804778,102160.0,102150.0,0.00014292]
[1746737386033,1.13264329,102160.0,102150.0,0.00014292]
[1746737386241,0.44153727,102160.0,102150.0,0.00014292]
[1746737386453,0.78709028,102160.0,102150.0,0.00014292]
[1746737387083,0.78254943,102160.0,102150.0,0.00014292]
[1746737387285,0.89421028,102160.0,102150.0,0.00014292]
[1746737387507,0.89721028,102160.0,102150.0,0.00014292]
[1746737387711,0.89921028,102160.0,102150.0,0.00114292]
[1746737388194,0.9998772,102160.0,102150.0,0.00114292]
[1746737388442,0.55365727,102160.0,102150.0,0.00114292]
[1746737388627,0.89921028,102160.0,102150.0,0.00114292]
[1746737389522,0.80209028,102160.0,102150.0,0.00114292]
[1746737389727,0.4507947,102160.0,102150.0,0.00114292]
[1746737389955,0.79634771,102160.0,102150.0,0.01017543]
[1746737391012,0.3537147,102160.0,102150.0,0.01017543]
[1746737391250,0.4344147,102160.0,102150.0,0.0264438]
[1746737391889,0.3529147,102160.0,102150.0,0.01017543]
[1746737392090,0.4499147,102160.0,102150.0,0.01017543]
[1746737393299,0.4499147,102160.0,102150.0,0.41017543]
[1746737394184,0.6734947,102160.0,102150.0,0.75017543]
[1746737394390,0.7704147,102160.0,102150.0,0.75017543]
[1746737394567,0.7704147,102160.0,102150.0,0.7664438]
[1746737395158,0.7704147,102160.0,102150.0,0.7732041]
[1746737395388,0.6734947,102160.0,102150.0,0.7732041]
[1746737396143,0.6734947,102160.0,102150.0,0.7664438]
[1746737396375,0.6734947,102160.0,102150.0,0.3664438]
[1746737396841,0.6734947,102160.0,102150.0,0.41626837]
[1746737398841,0.6734947,102160.0,102150.0,0.77166837]
[1746737399488,0.6734947,102160.0,102150.0,0.78746837]
[1746737399931,0.6734947,102160.0,102150.0,0.77166837]
[1746737400570,0.6734947,102160.0,102150.0,0.75626837]
[1746737404635,0.6734947,102160.0,102150.0,0.77136837]
[1746737404934,0.57282778,102160.0,102150.0,1.13322138]
[1746737405107,0.5630397,102160.0,102150.0,1.18803351]
[1746737405283,0.5630397,102160.0,102150.0,0.99224301]
[1746737406144,0.5600397,102160.0,102150.0,1.39224301]
[1746737406367,0.5590397,102160.0,102150.0,1.39224301]
[1746737406617,0.5600397,102160.0,102150.0,1.39224301]
[1746737407192,0.5600397,102160.0,102150.0,1.58803351]
[1746737407392,0.5600397,102160.0,102150.0,1.59782303]
[1746737407592,0.55025133,102160.0,102150.0,1.60761245]
[1746737407803,0.55025133,102160.0,102150.0,1.40203253]
[1746737408233,0.54925133,102160.0,102150.0,1.61740178]
[1746737408402,0.001,102160.0,102150.0,1.68591082]
[1746737408628,0.0097878,102160.0,102150.0,2.02157374]
[1746737408834,0.02936406,102160.0,102150.0,2.02357374]
[1746737409096,0.01957579,102160.0,102150.0,0.93246772]
[1746737409210,0.01957579,102160.0,102150.0,1.63034407]
[1746737409435,0.01957579,102160.0,102150.0,2.03234407]
[1746737409618,0.01957579,102160.0,102150.0,2.03034407]
[1746737409838,0.02936387,102160.0,102150.0,2.03034407]
[1746737410015,0.03036397,102160.0,102150.0,2.03334407]
[1746737410218,0.02057579,102160.0,102150.0,2.03334407]
[1746737410417,0.001,102160.0,102150.0,2.03134407]
[1746737410656,0.27401474,102180.0,102170.0,0.0154]
[1746737410844,0.37468166,102180.0,102170.0,0.36772334]
[1746737411042,0.37468166,102180.0,102170.0,0.37674755]
[1746737411651,0.07828172,102180.0,102170.0,0.58779972]
[1746737411848,0.01957205,102180.0,102170.0,2.7921846]
[1746737412056,0.04014467,102180.0,102170.0,2.7221516]
[1746737412320,0.04014457,102180.0,102170.0,2.7221516]
[1746737412536,0.03035812,102180.0,102170.0,2.7221516]
[1746737412744,0.04014457,102180.0,102170.0,2.7221516]
[1746737413169,0.04114457,102180.0,102170.0,2.7221516]
[1746737413372,0.04114457,102180.0,102170.0,3.06770461]
[1746737413373,0.002,102180.0,102170.0,3.06770461]
[1746737413769,0.002,102180.0,102170.0,2.7221516]
[1746737413968,0.57647224,102200.0,102190.0,0.56119955]
[1746737414169,0.67713916,102200.0,102190.0,1.81479414]
[1746737414388,0.67713916,102200.0,102190.0,2.28421615]
[1746737414389,0.57647224,102200.0,102190.0,2.28421615]
[1746737414591,0.57647224,102200.0,102190.0,2.29098648]
[1746737414715,0.57647224,102200.0,102190.0,2.11099448]
[1746737415232,0.01388717,102200.0,102190.0,2.13958902]
[1746737415386,0.03345577,102200.0,102190.0,2.13958902]
[1746737415591,0.01388688,102200.0,102190.0,1.79403601]
[1746737415758,0.03845567,102200.0,102190.0,3.72161701]
[1746737415964,0.01888688,102200.0,102190.0,3.71098901]
[1746737416379,0.02867113,102200.0,102190.0,3.93020102]
[1746737416582,0.01888688,102200.0,102190.0,3.93020102]
[1746737416785,0.01888688,102200.0,102190.0,3.53020102]
[1746737417409,0.02867113,102200.0,102190.0,3.19250845]
[1746737417484,0.01388688,102200.0,102190.0,3.19150845]
[1746737417788,0.02367113,102200.0,102190.0,3.19150845]
[1746737417947,0.01971112,102200.0,102190.0,3.19150845]
[1746737418352,0.00992687,102200.0,102190.0,3.19450845]
[1746737418643,0.07898172,102220.0,102210.0,0.22502602]
[1746737418852,0.5511236,102230.0,102220.0,0.20543914]
[1746737419059,0.55117123,102230.0,102220.0,0.96499124]
[1746737419262,0.01282882,102230.0,102220.0,1.69489155]
[1746737419472,0.04217335,102230.0,102220.0,1.36531598]
[1746737419689,0.03239168,102230.0,102220.0,1.77208631]
[1746737420106,0.19871309,102250.0,102240.0,0.20539867]
[1746737420312,0.00423427,102250.0,102240.0,2.83228032]
[1746737420511,0.01401374,102250.0,102240.0,3.08573358]
[1746737420735,0.02379292,102250.0,102240.0,2.51637457]
[1746737420943,0.0098268,102250.0,102240.0,2.96818603]
[1746737421156,4.762e-05,102250.0,102240.0,2.97736213]
[1746737421359,0.0153188,102250.0,102240.0,2.99978057]
[1746737421580,0.02509817,102250.0,102240.0,2.99978057]
[1746737421786,0.23047732,102250.0,102240.0,1.55446933]
[1746737421999,0.04465825,102250.0,102240.0,1.27717328]
[1746737422203,0.23476518,102250.0,102240.0,1.27717337]
[1746737422411,0.02356109,102250.0,102240.0,1.31984215]
[1746737422649,0.00400263,102250.0,102240.0,1.35906059]
[1746737422852,0.00888506,102260.0,102250.0,0.58113771]
[1746737423339,0.38169295,102270.0,102260.0,0.22491619]
[1746737423343,0.57772996,102270.0,102260.0,1.3887997]
[1746737423487,0.38216909,102270.0,102260.0,1.80177769]
[1746737423694,0.00047624,102270.0,102260.0,2.16484467]
[1746737423907,0.0293276,102290.0,102280.0,0.55509552]
[1746737424117,0.22485013,102290.0,102280.0,0.88192908]
[1746737424325,0.21521728,102290.0,102280.0,0.71495927]
[1746737424518,0.1917543,102290.0,102280.0,0.73376046]
[1746737425155,0.27003602,102290.0,102280.0,0.39422996]
[1746737425364,0.27003602,102290.0,102280.0,0.36500165]
[1746737425515,0.27003602,102290.0,102280.0,0.39422996]
[1746737425725,0.38661405,102290.0,102280.0,0.36500165]
[1746737425923,0.40231405,102290.0,102280.0,0.36500165]
[1746737426265,0.76640791,102290.0,102280.0,0.02500165]
[1746737426409,0.4208549,102290.0,102280.0,0.02500165]
[1746737427059,0.76640791,102290.0,102280.0,0.02500165]
[1746737427229,0.4268549,102290.0,102280.0,0.02600165]
[1746737427411,0.34857318,102290.0,102280.0,0.02600165]
[1746737427624,0.69412619,102290.0,102280.0,0.02600165]